fUST/lending_fUST_20240121
["ID","MTS","AMOUNT","RATE_DAILY","PERIOD"]
[312383101,1705848646252,-500.0,0.00027945,2]
[312383102,1705848646261,-500.0,0.00027945,2]
[312383103,1705848646270,-2664.76,0.00027945,2]
[312383104,1705848646279,-500.0,0.00027945,2]
[312383105,1705848646288,-628.37452926,0.00027945,2]
[312383106,1705848646297,-500.0,0.00027945,2]
[312383107,1705848646306,-500.0,0.00027945,2]
[312383108,1705848646315,-500.0,0.00027945,2]
[312383109,1705848646323,-500.0,0.00027945,2]
[312383110,1705848646333,-989.98,0.00027945,2]
[312383111,1705848646342,-500.0,0.00027945,2]
[312383112,1705848646352,-290.23210975,0.00028,2]
[312383113,1705848646360,-305.65151206,0.00028,2]
[312383114,1705848646369,-500.0,0.00028219,2]
[312383115,1705848646378,-547.95,0.00028219,2]
[312383116,1705848646387,-500.0,0.00028219,2]
[312383117,1705848646395,-500.0,0.00028219,2]
[312383118,1705848646404,-500.0,0.00028219,2]
[312383119,1705848646412,-500.0,0.00028219,2]
[312383120,1705848646421,-500.0,0.00028219,2]
[312383121,1705848646430,-1204.98,0.00028219,2]
[312383123,1705848646438,-1517.1,0.00028219,2]
[312383124,1705848646447,-500.0,0.00028219,2]
[312383125,1705848646457,-653.07,0.00028219,2]
[312383127,1705848646465,-500.0,0.00028219,2]
[312383129,1705848646474,-500.0,0.00028219,2]
[312383131,1705848646483,-500.0,0.00028219,2]
[312383133,1705848646492,-450.00000029,0.00028219,2]
[312383135,1705848646501,-500.0,0.00028219,2]
[312383137,1705848646510,-500.0,0.00028219,2]
[312383139,1705848646519,-500.0,0.00028219,2]
[312383141,1705848646529,-500.0,0.00028219,2]
[312383143,1705848646538,-500.0,0.00028219,2]
[312383145,1705848646546,-500.0,0.00028219,2]
[312383147,1705848646556,-1000.0,0.00028219,2]
[312383148,1705848646565,-500.0,0.00028219,2]
[312383150,1705848646575,-580.65,0.00028219,2]
[312383152,1705848646586,-500.0,0.00028219,2]
[312383154,1705848646595,-500.0,0.00028219,2]
[312383156,1705848646604,-684.23,0.00028219,2]
[312383158,1705848646613,-500.0,0.00028219,2]
[312383160,1705848646622,-500.0,0.00028219,2]
[312383162,1705848646632,-1346.72,0.00028219,2]
[312383164,1705848646641,-500.0,0.00028219,2]
[312383166,1705848646650,-500.0,0.00028219,2]
[312383168,1705848646659,-500.0,0.00028219,2]
[312383170,1705848646668,-632.56,0.00028219,2]
[312383172,1705848646677,-500.0,0.00028219,2]
[312383174,1705848646687,-500.0,0.00028219,2]
[312383176,1705848646696,-214.87548931,0.00028219,2]
[312383178,1705848646705,-500.0,0.00028219,2]
[312383180,1705848646714,-361.14705092,0.00028219,2]
[312383182,1705848646724,-500.0,0.00028219,2]
[312383183,1705848646734,-500.0,0.00028219,2]
[312383185,1705848646744,-500.0,0.00028219,2]
[312383187,1705848646753,-438.73175928,0.00028219,2]
[312383189,1705848646763,-500.0,0.00028219,2]
[312383191,1705848646772,-500.0,0.00028219,2]
[312383193,1705848646781,-725.88,0.00028219,2]
[312383195,1705848646791,-500.0,0.00028219,2]
[312383197,1705848646801,-500.0,0.00028219,2]
[312383199,1705848646811,-500.0,0.00028219,2]
[312383201,1705848646821,-500.0,0.00028219,2]
[312383203,1705848646830,-500.0,0.00028219,2]
[312383205,1705848646839,-1290.78,0.00028219,2]
[312383207,1705848646848,-14962.44564113,0.00028219,2]
[312383375,1705848853939,1000.0,0.00012,7]
[312383377,1705848942451,154.73694719,0.00019897,3]
[312383392,1705849075456,82.78915843,0.00019897,3]
[312383404,1705849630183,-71.94778876,0.00019897,3]
[312383405,1705849630207,-343.49604143,0.00019898,2]
[312383406,1705849630230,-850.12372754,0.0002,2]
[312383407,1705849630250,-323.06508436,0.00020997,2]
[312383408,1705849630271,-6381.99847439,0.00021,2]
[312383584,1705849838040,-323.06508436,0.0002098,2]
[312383586,1705849838050,-154.73694719,0.0002098,4]
[312383587,1705849838059,-310.3479687,0.00020981,2]
[312383590,1705849838095,-368.1285916,0.00020981,2]
[312383591,1705849838104,-171.333859,0.00020982,2]
[312383592,1705849838113,-1651.79831266,0.00021,2]
[312383593,1705849838123,-150.0,0.00021,2]
[312383594,1705849838132,-327.4401691,0.00021,2]
[312383596,1705849838142,-166.666666,0.00021918,2]
[312383597,1705849838153,-284.86512028,0.00022,4]
[312383598,1705849838162,-3967.54249474,0.00022,2]
[312383599,1705849838171,-425.88213647,0.0002243,2]
[312383600,1705849838181,-166.666666,0.00022431,2]
[312383601,1705849838190,-2102.94542064,0.00022716,2]
[312383602,1705849838199,-470.5887913,0.00022716,2]
[312383604,1705849838208,-2073.50516209,0.00022716,2]
[312383606,1705849838219,-1253.15755419,0.00022717,2]
[312383608,1705849838228,-24900.0,0.00022718,2]
[312383610,1705849838236,-166.666666,0.00022944,2]
[312383612,1705849838246,-1571.13875008,0.00023,2]
[312383614,1705849838255,-200.0,0.00023099,7]
[312383616,1705849838264,-166.666666,0.00023456,2]
[312383618,1705849838273,-166.666666,0.00023969,2]
[312383620,1705849838282,-173.519603,0.00024237,2]
[312383622,1705849838291,-166.666666,0.00024482,2]
[312383624,1705849838299,-237.57908484,0.00025,2]
[312383626,1705849838308,-1046.11952043,0.00025,2]
[312383628,1705849838318,-4013.17086376,0.00025391,2]
[312383630,1705849838328,-244.09765424,0.00025395,2]
[312383632,1705849838337,-280.0,0.00025409,7]
[312383634,1705849838346,-1006.42167302,0.00025845,2]
[312383636,1705849838355,-621.11847937,0.00026725,2]
[312383638,1705849838364,-5542.52,0.00027385,3]
[312383640,1705849838373,-4618.76,0.00027385,3]
[312383642,1705849838382,-3848.97,0.00027385,3]
[312383643,1705849838391,-3207.48,0.00027385,3]
[312383645,1705849838400,-737.89771219,0.00027394,2]
[312383647,1705849838410,-7766.26922979,0.00027395,2]
[312383649,1705849838420,-36931.7299546,0.00027395,2]
[312383651,1705849838429,-737.62482725,0.00027395,2]
[312383653,1705849838437,-2525.77732141,0.00027395,2]
[312383656,1705849838455,-6228.29714075,0.00027395,2]
[312383658,1705849838464,-313.23857364,0.00027396,2]
[312383660,1705849838472,-20856.74094131,0.00027396,2]
[312383662,1705849838482,-500.0,0.00027397,2]
[312383664,1705849838491,-500.0,0.00027397,2]
[312383666,1705849838501,-500.0,0.00027397,2]
[312383668,1705849838509,-500.0,0.00027397,2]
[312383670,1705849838518,-500.0,0.00027397,2]
[312383671,1705849838527,-655.82,0.00027397,2]
[312383673,1705849838536,-567.44,0.00027397,2]
[312383675,1705849838546,-500.0,0.00027397,2]
[312383677,1705849838555,-500.0,0.00027397,2]
[312383679,1705849838563,-500.0,0.00027397,2]
[312383681,1705849838573,-500.0,0.00027397,2]
[312383683,1705849838582,-611.14,0.00027397,2]
[312383685,1705849838591,-500.0,0.00027397,2]
[312383687,1705849838600,-500.0,0.00027397,2]
[312383689,1705849838610,-500.0,0.00027397,2]
[312383691,1705849838619,-500.0,0.00027397,2]
[312383693,1705849838628,-500.0,0.00027397,2]
[312383695,1705849838636,-672.91,0.00027397,2]
[312383697,1705849838646,-500.0,0.00027397,2]
[312383699,1705849838655,-500.0,0.00027397,2]
[312383700,1705849838663,-500.0,0.00027397,2]
[312383702,1705849838673,-500.0,0.00027397,2]
[312383704,1705849838682,-500.0,0.00027397,2]
[312383706,1705849838691,-500.0,0.00027397,2]
[312383708,1705849838700,-500.0,0.00027397,2]
[312383709,1705849838709,-500.0,0.00027397,2]
[312383711,1705849838718,-1433.19,0.00027397,2]
[312383712,1705849838728,-500.0,0.00027397,2]
[312383713,1705849838737,-500.0,0.00027397,2]
[312383714,1705849838746,-500.0,0.00027397,2]
[312383715,1705849838755,-500.0,0.00027397,2]
[312383716,1705849838764,-703.36,0.00027397,2]
[312383717,1705849838774,-1563.73,0.00027397,2]
[312383718,1705849838783,-500.0,0.00027397,2]
[312383719,1705849838791,-272.10921879,0.00027397,2]
[312383720,1705849838801,-500.0,0.00027397,2]
[312383721,1705849838810,-500.0,0.00027397,2]
[312383722,1705849838818,-500.0,0.00027397,2]
[312383723,1705849838827,-500.0,0.00027397,2]
[312383724,1705849838836,-500.0,0.00027397,2]
[312383725,1705849838846,-500.0,0.00027397,2]
[312383726,1705849838855,-1000.0,0.00027397,2]
[312383727,1705849838864,-1417.45,0.00027397,2]
[312383728,1705849838873,-500.0,0.00027397,2]
[312383729,1705849838882,-500.0,0.00027397,2]
[312383730,1705849838891,-500.0,0.00027397,2]
[312383731,1705849838900,-500.0,0.00027397,2]
[312383732,1705849838910,-758.52,0.00027397,2]
[312383733,1705849838919,-500.0,0.00027397,2]
[312383734,1705849838929,-500.0,0.00027397,2]
[312383735,1705849838938,-500.0,0.00027397,2]
[312383736,1705849838947,-500.0,0.00027397,2]
[312383737,1705849838957,-500.0,0.00027397,2]
[312383738,1705849838965,-500.0,0.00027397,2]
[312383739,1705849838975,-500.0,0.00027397,2]
[312383740,1705849838983,-500.0,0.00027397,2]
[312383741,1705849838993,-456.24369691,0.00027397,2]
[312383742,1705849839002,-500.0,0.00027397,2]
[312383743,1705849839011,-500.0,0.00027397,2]
[312383744,1705849839020,-500.0,0.00027397,2]
[312383745,1705849839030,-500.0,0.00027397,2]
[312383746,1705849839039,-500.0,0.00027397,2]
[312383747,1705849839048,-500.0,0.00027397,2]
[312383748,1705849839058,-500.0,0.00027397,2]
[312383749,1705849839067,-500.0,0.00027397,2]
[312383750,1705849839076,-970.77,0.00027397,2]
[312383751,1705849839085,-500.0,0.00027397,2]
[312383752,1705849839095,-500.0,0.00027397,2]
[312383754,1705849839104,-500.0,0.00027397,2]
[312383755,1705849839113,-500.0,0.00027397,2]
[312383756,1705849839125,-500.0,0.00027397,2]
[312383758,1705849839134,-500.0,0.00027397,2]
[312383759,1705849839145,-1076.41,0.00027397,2]
[312383761,1705849839155,-500.0,0.00027397,2]
[312383762,1705849839164,-523.32,0.00027397,2]
[312383764,1705849839173,-512.58199465,0.00027397,2]
[312383765,1705849839183,-512.1,0.00027397,2]
[312383766,1705849839193,-500.0,0.00027397,2]
[312383767,1705849839202,-500.0,0.00027397,2]
[312383768,1705849839212,-1209.54,0.00027397,2]
[312383769,1705849839222,-500.0,0.00027397,2]
[312383770,1705849839231,-500.0,0.00027397,2]
[312383771,1705849839241,-500.0,0.00027397,2]
[312383772,1705849839250,-500.0,0.00027397,2]
[312383773,1705849839260,-1482.85,0.00027397,2]
[312383774,1705849839269,-500.0,0.00027397,2]
[312383775,1705849839278,-500.0,0.00027397,2]
[312383776,1705849839288,-500.0,0.00027397,2]
[312383777,1705849839298,-1429.17,0.00027397,2]
[312383778,1705849839308,-1690.97,0.00027397,2]
[312383779,1705849839318,-4095.59,0.00027397,2]
[312383780,1705849839327,-654.67,0.00027397,2]
[312383781,1705849839336,-500.0,0.00027397,2]
[312383782,1705849839346,-623.71,0.00027397,2]
[312383783,1705849839356,-500.0,0.00027397,2]
[312383784,1705849839365,-16069.32,0.00027397,2]
[312383785,1705849839373,-500.0,0.00027397,2]
[312383786,1705849839382,-500.0,0.00027397,2]
[312383787,1705849839392,-500.0,0.00027397,2]
[312383788,1705849839401,-500.0,0.00027397,2]
[312383789,1705849839410,-500.0,0.00027397,2]
[312383790,1705849839419,-155.0,0.00027397,2]
[312383791,1705849839429,-10504.74,0.00027397,2]
[312383792,1705849839438,-961.3,0.00027397,2]
[312383793,1705849839447,-698.98,0.00027397,2]
[312383794,1705849839456,-500.0,0.00027397,2]
[312383795,1705849839465,-500.0,0.00027397,2]
[312383796,1705849839475,-823.52,0.00027397,2]
[312383797,1705849839484,-892.11,0.00027397,2]
[312383798,1705849839493,-500.0,0.00027397,2]
[312383799,1705849839502,-892.85,0.00027397,2]
[312383800,1705849839512,-792.11,0.00027397,2]
[312383801,1705849839521,-511.6,0.00027397,2]
[312383802,1705849839530,-500.0,0.00027397,2]
[312383803,1705849839540,-6144.7,0.00027397,2]
[312383804,1705849839549,-500.0,0.00027397,2]
[312383805,1705849839559,-3754.41,0.00027397,2]
[312383806,1705849839568,-6499.96,0.00027397,2]
[312383807,1705849839577,-5595.63,0.00027397,2]
[312383808,1705849839586,-500.0,0.00027397,2]
[312383809,1705849839596,-2147.1,0.00027397,2]
[312383810,1705849839605,-1371.66,0.00027397,2]
[312383811,1705849839614,-500.0,0.00027397,2]
[312383812,1705849839623,-1250.73,0.00027397,2]
[312383813,1705849839632,-500.0,0.00027397,2]
[312383814,1705849839641,-739.74,0.00027397,2]
[312383815,1705849839651,-2668.27,0.00027397,2]
[312383816,1705849839660,-427.33355453,0.00027397,2]
[312383817,1705849839669,-500.0,0.00027397,2]
[312383818,1705849839678,-500.0,0.00027397,2]
[312383819,1705849839687,-500.0,0.00027397,2]
[312383820,1705849839696,-150.91379181,0.00027397,2]
[312383821,1705849839705,-500.0,0.00027397,2]
[312383822,1705849839714,-500.0,0.00027397,2]
[312383823,1705849839723,-500.0,0.00027671,2]
[312383824,1705849839732,-500.0,0.00027671,2]
[312383825,1705849839741,-500.0,0.00027671,2]
[312383826,1705849839750,-500.0,0.00027671,2]
[312383827,1705849839759,-655.82,0.00027671,2]
[312383828,1705849839767,-567.44,0.00027671,2]
[312383829,1705849839776,-500.0,0.00027671,2]
[312383830,1705849839785,-500.0,0.00027671,2]
[312383831,1705849839794,-500.0,0.00027671,2]
[312383832,1705849839803,-500.0,0.00027671,2]
[312383833,1705849839813,-611.14,0.00027671,2]
[312383834,1705849839822,-500.0,0.00027671,2]
[312383835,1705849839831,-500.0,0.00027671,2]
[312383836,1705849839841,-500.0,0.00027671,2]
[312383837,1705849839851,-500.0,0.00027671,2]
[312383838,1705849839859,-500.0,0.00027671,2]
[312383839,1705849839869,-672.91,0.00027671,2]
[312383840,1705849839878,-500.0,0.00027671,2]
[312383841,1705849839887,-500.0,0.00027671,2]
[312383842,1705849839897,-500.0,0.00027671,2]
[312383843,1705849839906,-505.07802076,0.00027671,2]
[312383844,1705849839916,-500.0,0.00027671,2]
[312383845,1705849839926,-500.0,0.00027671,2]
[312383846,1705849839935,-500.0,0.00027671,2]
[312383847,1705849839945,-1433.19,0.00027671,2]
[312383849,1705849839954,-500.0,0.00027671,2]
[312383851,1705849839963,-500.0,0.00027671,2]
[312383853,1705849839973,-500.0,0.00027671,2]
[312383854,1705849839982,-703.36,0.00027671,2]
[312383855,1705849839991,-1563.73,0.00027671,2]
[312383857,1705849840000,-500.0,0.00027671,2]
[312383859,1705849840009,-500.0,0.00027671,2]
[312383861,1705849840018,-500.0,0.00027671,2]
[312383864,1705849840027,-500.0,0.00027671,2]
[312383867,1705849840036,-500.0,0.00027671,2]
[312383869,1705849840045,-500.0,0.00027671,2]
[312383871,1705849840053,-500.0,0.00027671,2]
[312383873,1705849840062,-1000.0,0.00027671,2]
[312383875,1705849840071,-1417.45,0.00027671,2]
[312383877,1705849840081,-500.0,0.00027671,2]
[312383879,1705849840090,-500.0,0.00027671,2]
[312383880,1705849840100,-500.0,0.00027671,2]
[312383883,1705849840109,-500.0,0.00027671,2]
[312383885,1705849840119,-758.52,0.00027671,2]
[312383886,1705849840129,-500.0,0.00027671,2]
[312383889,1705849840142,-500.0,0.00027671,2]
[312383891,1705849840152,-500.0,0.00027671,2]
[312383892,1705849840161,-500.0,0.00027671,2]
[312383895,1705849840170,-500.0,0.00027671,2]
[312383897,1705849840180,-330.07898599,0.00027671,2]
[312383898,1705849840189,-349.449581,0.00027671,2]
[312383901,1705849840199,-500.0,0.00027671,2]
[312383902,1705849840208,-500.0,0.00027671,2]
[312383904,1705849840218,-500.0,0.00027671,2]
[312383907,1705849840228,-500.0,0.00027671,2]
[312383908,1705849840237,-500.0,0.00027671,2]
[312383910,1705849840246,-500.0,0.00027671,2]
[312383913,1705849840256,-500.0,0.00027671,2]
[312383914,1705849840265,-500.0,0.00027671,2]
[312383916,1705849840274,-500.0,0.00027671,2]
[312383918,1705849840283,-970.77,0.00027671,2]
[312383920,1705849840293,-500.0,0.00027671,2]
[312383923,1705849840302,-500.0,0.00027671,2]
[312383925,1705849840312,-500.0,0.00027671,2]
[312383926,1705849840321,-500.0,0.00027671,2]
[312383928,1705849840330,-500.0,0.00027671,2]
[312383931,1705849840340,-500.0,0.00027671,2]
[312383932,1705849840350,-1076.41,0.00027671,2]
[312383934,1705849840359,-500.0,0.00027671,2]
[312383936,1705849840369,-523.32,0.00027671,2]
[312383939,1705849840379,-512.1,0.00027671,2]
[312383940,1705849840388,-500.0,0.00027671,2]
[312383942,1705849840397,-500.0,0.00027671,2]
[312383944,1705849840407,-1209.54,0.00027671,2]
[312383946,1705849840416,-500.0,0.00027671,2]
[312383949,1705849840425,-500.0,0.00027671,2]
[312383951,1705849840434,-500.0,0.00027671,2]
[312383952,1705849840443,-1482.85,0.00027671,2]
[312383955,1705849840453,-500.0,0.00027671,2]
[312383956,1705849840462,-500.0,0.00027671,2]
[312383958,1705849840471,-500.0,0.00027671,2]
[312383961,1705849840481,-1429.17,0.00027671,2]
[312383963,1705849840490,-1690.97,0.00027671,2]
[312383964,1705849840499,-4095.59,0.00027671,2]
[312383967,1705849840508,-654.67,0.00027671,2]
[312383969,1705849840517,-500.0,0.00027671,2]
[312383971,1705849840527,-623.71,0.00027671,2]
[312383972,1705849840536,-500.0,0.00027671,2]
[312383974,1705849840546,-16069.32,0.00027671,2]
[312383977,1705849840555,-500.0,0.00027671,2]
[312383978,1705849840564,-500.0,0.00027671,2]
[312383981,1705849840574,-500.0,0.00027671,2]
[312383983,1705849840583,-500.0,0.00027671,2]
[312383984,1705849840592,-500.0,0.00027671,2]
[312383986,1705849840602,-10504.74,0.00027671,2]
[312383988,1705849840611,-961.3,0.00027671,2]
[312384002,1705849840730,-698.98,0.00027671,2]
[312384005,1705849840740,-423.02517394,0.00027671,2]
[312384007,1705849840750,-500.0,0.00027671,2]
[312384009,1705849840759,-823.52,0.00027671,2]
[312384011,1705849840768,-892.11,0.00027671,2]
[312384013,1705849840777,-500.0,0.00027671,2]
[312384015,1705849840786,-892.85,0.00027671,2]
[312384016,1705849840795,-792.11,0.00027671,2]
[312384019,1705849840804,-511.6,0.00027671,2]
[312384021,1705849840814,-500.0,0.00027671,2]
[312384023,1705849840823,-6144.7,0.00027671,2]
[312384024,1705849840832,-500.0,0.00027671,2]
[312384028,1705849840842,-3754.41,0.00027671,2]
[312384030,1705849840851,-6499.96,0.00027671,2]
[312384034,1705849840861,-5595.63,0.00027671,2]
[312384035,1705849840870,-406.48648431,0.00027671,2]
[312384039,1705849840879,-2147.1,0.00027671,2]
[312384040,1705849840889,-1371.66,0.00027671,2]
[312384042,1705849840898,-500.0,0.00027671,2]
[312384043,1705849840906,-1250.73,0.00027671,2]
[312384044,1705849840915,-500.0,0.00027671,2]
[312384045,1705849840924,-739.74,0.00027671,2]
[312384047,1705849840933,-2668.27,0.00027671,2]
[312384049,1705849840941,-500.0,0.00027671,2]
[312384051,1705849840950,-500.0,0.00027671,2]
[312384053,1705849840959,-500.0,0.00027671,2]
[312384054,1705849840967,-500.0,0.00027671,2]
[312384056,1705849840977,-500.0,0.00027671,2]
[312384058,1705849840986,-827.89267506,0.00027924,3]
[312384060,1705849840994,-5000.0,0.00027924,5]
[312384062,1705849841003,-9481.18876477,0.00027924,3]
[312384064,1705849841012,-500.0,0.00027945,2]
[312384066,1705849841021,-500.0,0.00027945,2]
[312384068,1705849841030,-500.0,0.00027945,2]
[312384071,1705849841039,-500.0,0.00027945,2]
[312384073,1705849841048,-655.82,0.00027945,2]
[312384076,1705849841057,-567.44,0.00027945,2]
[312384080,1705849841066,-500.0,0.00027945,2]
[312384082,1705849841075,-328.68299428,0.00027945,2]
[312384085,1705849841084,-500.0,0.00027945,2]
[312384088,1705849841092,-500.0,0.00027945,2]
[312384092,1705849841102,-611.14,0.00027945,2]
[312384094,1705849841111,-500.0,0.00027945,2]
[312384096,1705849841120,-158.7612329,0.00027945,2]
[312384098,1705849841133,-500.0,0.00027945,2]
[312384100,1705849841142,-500.0,0.00027945,2]
[312384102,1705849841151,-500.0,0.00027945,2]
[312384104,1705849841160,-672.91,0.00027945,2]
[312384106,1705849841168,-500.0,0.00027945,2]
[312384108,1705849841177,-500.0,0.00027945,2]
[312384110,1705849841186,-500.0,0.00027945,2]
[312384112,1705849841195,-500.0,0.00027945,2]
[312384115,1705849841206,-239.76999325,0.00027945,2]
[312384117,1705849841215,-500.0,0.00027945,2]
[312384118,1705849841224,-1433.19,0.00027945,2]
[312384120,1705849841233,-500.0,0.00027945,2]
[312384123,1705849841243,-312.59807089,0.00027945,2]
[312384125,1705849841252,-703.36,0.00027945,2]
[312384128,1705849841261,-1563.73,0.00027945,2]
[312384130,1705849841271,-500.0,0.00027945,2]
[312384132,1705849841280,-500.0,0.00027945,2]
[312384134,1705849841289,-500.0,0.00027945,2]
[312384135,1705849841299,-500.0,0.00027945,2]
[312384138,1705849841308,-500.0,0.00027945,2]
[312384139,1705849841317,-500.0,0.00027945,2]
[312384142,1705849841328,-1000.0,0.00027945,2]
[312384144,1705849841339,-1417.45,0.00027945,2]
[312384145,1705849841348,-500.0,0.00027945,2]
[312384147,1705849841357,-500.0,0.00027945,2]
[312384149,1705849841367,-500.0,0.00027945,2]
[312384151,1705849841376,-500.0,0.00027945,2]
[312384153,1705849841386,-758.52,0.00027945,2]
[312384156,1705849841395,-500.0,0.00027945,2]
[312384159,1705849841405,-500.0,0.00027945,2]
[312384160,1705849841414,-500.0,0.00027945,2]
[312384162,1705849841423,-500.0,0.00027945,2]
[312384163,1705849841432,-500.0,0.00027945,2]
[312384164,1705849841442,-500.0,0.00027945,2]
[312384165,1705849841451,-500.0,0.00027945,2]
[312384166,1705849841460,-500.0,0.00027945,2]
[312384167,1705849841469,-500.0,0.00027945,2]
[312384168,1705849841478,-500.0,0.00027945,2]
[312384169,1705849841487,-500.0,0.00027945,2]
[312384170,1705849841496,-970.77,0.00027945,2]
[312384171,1705849841505,-500.0,0.00027945,2]
[312384172,1705849841514,-500.0,0.00027945,2]
[312384173,1705849841523,-491.83100302,0.00027945,2]
[312384174,1705849841532,-500.0,0.00027945,2]
[312384175,1705849841541,-500.0,0.00027945,2]
[312384176,1705849841551,-500.0,0.00027945,2]
[312384177,1705849841559,-1076.41,0.00027945,2]
[312384178,1705849841568,-500.0,0.00027945,2]
[312384179,1705849841577,-523.32,0.00027945,2]
[312384180,1705849841587,-512.1,0.00027945,2]
[312384181,1705849841597,-500.0,0.00027945,2]
[312384182,1705849841608,-500.0,0.00027945,2]
[312384183,1705849841617,-1209.54,0.00027945,2]
[312384184,1705849841627,-500.0,0.00027945,2]
[312384185,1705849841636,-500.0,0.00027945,2]
[312384186,1705849841644,-500.0,0.00027945,2]
[312384187,1705849841653,-1482.85,0.00027945,2]
[312384188,1705849841662,-500.0,0.00027945,2]
[312384189,1705849841672,-500.0,0.00027945,2]
[312384190,1705849841681,-1429.17,0.00027945,2]
[312384191,1705849841691,-1690.97,0.00027945,2]
[312384192,1705849841700,-4095.59,0.00027945,2]
[312384193,1705849841709,-654.67,0.00027945,2]
[312384194,1705849841720,-500.0,0.00027945,2]
[312384195,1705849841729,-623.71,0.00027945,2]
[312384196,1705849841740,-500.0,0.00027945,2]
[312384197,1705849841750,-16069.32,0.00027945,2]
[312384198,1705849841760,-500.0,0.00027945,2]
[312384199,1705849841769,-500.0,0.00027945,2]
[312384200,1705849841778,-500.0,0.00027945,2]
[312384201,1705849841787,-10504.74,0.00027945,2]
[312384202,1705849841797,-961.3,0.00027945,2]
[312384203,1705849841806,-698.98,0.00027945,2]
[312384204,1705849841816,-500.0,0.00027945,2]
[312384205,1705849841826,-823.52,0.00027945,2]
[312384206,1705849841836,-892.11,0.00027945,2]
[312384207,1705849841846,-500.0,0.00027945,2]
[312384208,1705849841856,-892.85,0.00027945,2]
[312384209,1705849841865,-792.11,0.00027945,2]
[312384210,1705849841875,-511.6,0.00027945,2]
[312384211,1705849841886,-500.0,0.00027945,2]
[312384212,1705849841895,-6144.7,0.00027945,2]
[312384213,1705849841906,-500.0,0.00027945,2]
[312384214,1705849841916,-3754.41,0.00027945,2]
[312384215,1705849841926,-6499.96,0.00027945,2]
[312384216,1705849841935,-5595.63,0.00027945,2]
[312384217,1705849841946,-2147.1,0.00027945,2]
[312384218,1705849841955,-1371.66,0.00027945,2]
[312384219,1705849841967,-500.0,0.00027945,2]
[312384220,1705849841976,-1250.73,0.00027945,2]
[312384221,1705849841985,-594.64113773,0.00027945,2]
[312384222,1705849841995,-739.74,0.00027945,2]
[312384223,1705849842004,-2668.27,0.00027945,2]
[312384224,1705849842014,-500.0,0.00027945,2]
[312384225,1705849842024,-500.0,0.00027945,2]
[312384226,1705849842032,-561.10174974,0.00027945,2]
[312384227,1705849842042,-500.0,0.00027945,2]
[312384228,1705849842052,-391.0,0.0002795,15]
[312384229,1705849842062,-289.86771937,0.00028,2]
[312384230,1705849842071,-4119.03611754,0.00028,2]
[312384231,1705849842080,-313.08093929,0.00028,7]
[312384232,1705849842090,-516.0147709,0.00028,5]
[312384233,1705849842099,-620.05592397,0.00028061,2]
[312384234,1705849842108,-492.85974776,0.00028118,2]
[312384235,1705849842119,-500.0,0.00028118,2]
[312384236,1705849842129,-500.0,0.00028118,2]
[312384237,1705849842139,-167.57198212,0.00028118,2]
[312384238,1705849842149,-500.0,0.00028118,2]